Workbook

Sheet Bond Amortization (Digital)
A2: OUR BOND
A3: amortization
B5: BOND PURCHASE PRICE | C5: $100,000.00
B6: FACE VALUE OF BOND | C6: $96,149.00
B7: YEARS UNTIL MATURITY | C7: 10
B8: COUPON RATE | C8: 10.00%
B9: EFFECTIVE RATE | C9: 5.00%
E11: AMORTIZATION
E12: OF (DISCOUNT) | F12: CARRYING
B13: PAYMENTS | C13: CASH PAID | D13: EXPENSE | E13: OR PREMIUM | F13: AMOUNT
B14: =IF(YearsToMaturity*2>=ROW()-ROW(AmortizationSchedule[])+1,ROW()-ROW(AmortizationSchedule[])+1,0) -> 1 | C14: =(AmortizationSchedule[[#This Row],[PAYMENTS]]>0)*FaceValue*CouponRate*0.5 -> $4,807.45 | D14: =(AmortizationSchedule[[#This Row],[PAYMENTS]]>0)*EffectiveRate*0.5*IF(AmortizationSchedule[[#This Row],[PAYMENTS]]=1,PurchasePrice,$F13) -> $2,500.00 | E14: =AmortizationSchedule[[#This Row],[CASH PAID]]-AmortizationSchedule[[#This Row],[EXPENSE]] -> $2,307.45 | F14: =IF(AmortizationSchedule[[#This Row],[PAYMENTS]]=1,PurchasePrice-AmortizationSchedule[[#This Row],[OR PREMIUM]],$F13-AmortizationSchedule[[#This Row],[OR PREMIUM]])*(AmortizationSchedule[[#This Row],[PAYMENTS]]>0) -> $97,692.55
B15: =IF(YearsToMaturity*2>=ROW()-ROW(AmortizationSchedule[])+1,ROW()-ROW(AmortizationSchedule[])+1,0) -> 2 | C15: =(AmortizationSchedule[[#This Row],[PAYMENTS]]>0)*FaceValue*CouponRate*0.5 -> $4,807.45 | D15: =(AmortizationSchedule[[#This Row],[PAYMENTS]]>0)*EffectiveRate*0.5*IF(AmortizationSchedule[[#This Row],[PAYMENTS]]=1,PurchasePrice,$F14) -> $2,442.31 | E15: =AmortizationSchedule[[#This Row],[CASH PAID]]-AmortizationSchedule[[#This Row],[EXPENSE]] -> $2,365.14 | F15: =IF(AmortizationSchedule[[#This Row],[PAYMENTS]]=1,PurchasePrice-AmortizationSchedule[[#This Row],[OR PREMIUM]],$F14-AmortizationSchedule[[#This Row],[OR PREMIUM]])*(AmortizationSchedule[[#This Row],[PAYMENTS]]>0) -> $95,327.41
B16: =IF(YearsToMaturity*2>=ROW()-ROW(AmortizationSchedule[])+1,ROW()-ROW(AmortizationSchedule[])+1,0) -> 3 | C16: =(AmortizationSchedule[[#This Row],[PAYMENTS]]>0)*FaceValue*CouponRate*0.5 -> $4,807.45 | D16: =(AmortizationSchedule[[#This Row],[PAYMENTS]]>0)*EffectiveRate*0.5*IF(AmortizationSchedule[[#This Row],[PAYMENTS]]=1,PurchasePrice,$F15) -> $2,383.19 | E16: =AmortizationSchedule[[#This Row],[CASH PAID]]-AmortizationSchedule[[#This Row],[EXPENSE]] -> $2,424.26 | F16: =IF(AmortizationSchedule[[#This Row],[PAYMENTS]]=1,PurchasePrice-AmortizationSchedule[[#This Row],[OR PREMIUM]],$F15-AmortizationSchedule[[#This Row],[OR PREMIUM]])*(AmortizationSchedule[[#This Row],[PAYMENTS]]>0) -> $92,903.15
B17: =IF(YearsToMaturity*2>=ROW()-ROW(AmortizationSchedule[])+1,ROW()-ROW(AmortizationSchedule[])+1,0) -> 4 | C17: =(AmortizationSchedule[[#This Row],[PAYMENTS]]>0)*FaceValue*CouponRate*0.5 -> $4,807.45 | D17: =(AmortizationSchedule[[#This Row],[PAYMENTS]]>0)*EffectiveRate*0.5*IF(AmortizationSchedule[[#This Row],[PAYMENTS]]=1,PurchasePrice,$F16) -> $2,322.58 | E17: =AmortizationSchedule[[#This Row],[CASH PAID]]-AmortizationSchedule[[#This Row],[EXPENSE]] -> $2,484.87 | F17: =IF(AmortizationSchedule[[#This Row],[PAYMENTS]]=1,PurchasePrice-AmortizationSchedule[[#This Row],[OR PREMIUM]],$F16-AmortizationSchedule[[#This Row],[OR PREMIUM]])*(AmortizationSchedule[[#This Row],[PAYMENTS]]>0) -> $90,418.28
B18: =IF(YearsToMaturity*2>=ROW()-ROW(AmortizationSchedule[])+1,ROW()-ROW(AmortizationSchedule[])+1,0) -> 5 | C18: =(AmortizationSchedule[[#This Row],[PAYMENTS]]>0)*FaceValue*CouponRate*0.5 -> $4,807.45 | D18: =(AmortizationSchedule[[#This Row],[PAYMENTS]]>0)*EffectiveRate*0.5*IF(AmortizationSchedule[[#This Row],[PAYMENTS]]=1,PurchasePrice,$F17) -> $2,260.46 | E18: =AmortizationSchedule[[#This Row],[CASH PAID]]-AmortizationSchedule[[#This Row],[EXPENSE]] -> $2,546.99 | F18: =IF(AmortizationSchedule[[#This Row],[PAYMENTS]]=1,PurchasePrice-AmortizationSchedule[[#This Row],[OR PREMIUM]],$F17-AmortizationSchedule[[#This Row],[OR PREMIUM]])*(AmortizationSchedule[[#This Row],[PAYMENTS]]>0) -> $87,871.28
B19: =IF(YearsToMaturity*2>=ROW()-ROW(AmortizationSchedule[])+1,ROW()-ROW(AmortizationSchedule[])+1,0) -> 6 | C19: =(AmortizationSchedule[[#This Row],[PAYMENTS]]>0)*FaceValue*CouponRate*0.5 -> $4,807.45 | D19: =(AmortizationSchedule[[#This Row],[PAYMENTS]]>0)*EffectiveRate*0.5*IF(AmortizationSchedule[[#This Row],[PAYMENTS]]=1,PurchasePrice,$F18) -> $2,196.78 | E19: =AmortizationSchedule[[#This Row],[CASH PAID]]-AmortizationSchedule[[#This Row],[EXPENSE]] -> $2,610.67 | F19: =IF(AmortizationSchedule[[#This Row],[PAYMENTS]]=1,PurchasePrice-AmortizationSchedule[[#This Row],[OR PREMIUM]],$F18-AmortizationSchedule[[#This Row],[OR PREMIUM]])*(AmortizationSchedule[[#This Row],[PAYMENTS]]>0) -> $85,260.62
B20: =IF(YearsToMaturity*2>=ROW()-ROW(AmortizationSchedule[])+1,ROW()-ROW(AmortizationSchedule[])+1,0) -> 7 | C20: =(AmortizationSchedule[[#This Row],[PAYMENTS]]>0)*FaceValue*CouponRate*0.5 -> $4,807.45 | D20: =(AmortizationSchedule[[#This Row],[PAYMENTS]]>0)*EffectiveRate*0.5*IF(AmortizationSchedule[[#This Row],[PAYMENTS]]=1,PurchasePrice,$F19) -> $2,131.52 | E20: =AmortizationSchedule[[#This Row],[CASH PAID]]-AmortizationSchedule[[#This Row],[EXPENSE]] -> $2,675.93 | F20: =IF(AmortizationSchedule[[#This Row],[PAYMENTS]]=1,PurchasePrice-AmortizationSchedule[[#This Row],[OR PREMIUM]],$F19-AmortizationSchedule[[#This Row],[OR PREMIUM]])*(AmortizationSchedule[[#This Row],[PAYMENTS]]>0) -> $82,584.68
B21: =IF(YearsToMaturity*2>=ROW()-ROW(AmortizationSchedule[])+1,ROW()-ROW(AmortizationSchedule[])+1,0) -> 8 | C21: =(AmortizationSchedule[[#This Row],[PAYMENTS]]>0)*FaceValue*CouponRate*0.5 -> $4,807.45 | D21: =(AmortizationSchedule[[#This Row],[PAYMENTS]]>0)*EffectiveRate*0.5*IF(AmortizationSchedule[[#This Row],[PAYMENTS]]=1,PurchasePrice,$F20) -> $2,064.62 | E21: =AmortizationSchedule[[#This Row],[CASH PAID]]-AmortizationSchedule[[#This Row],[EXPENSE]] -> $2,742.83 | F21: =IF(AmortizationSchedule[[#This Row],[PAYMENTS]]=1,PurchasePrice-AmortizationSchedule[[#This Row],[OR PREMIUM]],$F20-AmortizationSchedule[[#This Row],[OR PREMIUM]])*(AmortizationSchedule[[#This Row],[PAYMENTS]]>0) -> $79,841.85
B22: =IF(YearsToMaturity*2>=ROW()-ROW(AmortizationSchedule[])+1,ROW()-ROW(AmortizationSchedule[])+1,0) -> 9 | C22: =(AmortizationSchedule[[#This Row],[PAYMENTS]]>0)*FaceValue*CouponRate*0.5 -> $4,807.45 | D22: =(AmortizationSchedule[[#This Row],[PAYMENTS]]>0)*EffectiveRate*0.5*IF(AmortizationSchedule[[#This Row],[PAYMENTS]]=1,PurchasePrice,$F21) -> $1,996.05 | E22: =AmortizationSchedule[[#This Row],[CASH PAID]]-AmortizationSchedule[[#This Row],[EXPENSE]] -> $2,811.40 | F22: =IF(AmortizationSchedule[[#This Row],[PAYMENTS]]=1,PurchasePrice-AmortizationSchedule[[#This Row],[OR PREMIUM]],$F21-AmortizationSchedule[[#This Row],[OR PREMIUM]])*(AmortizationSchedule[[#This Row],[PAYMENTS]]>0) -> $77,030.45
B23: =IF(YearsToMaturity*2>=ROW()-ROW(AmortizationSchedule[])+1,ROW()-ROW(AmortizationSchedule[])+1,0) -> 10 | C23: =(AmortizationSchedule[[#This Row],[PAYMENTS]]>0)*FaceValue*CouponRate*0.5 -> $4,807.45 | D23: =(AmortizationSchedule[[#This Row],[PAYMENTS]]>0)*EffectiveRate*0.5*IF(AmortizationSchedule[[#This Row],[PAYMENTS]]=1,PurchasePrice,$F22) -> $1,925.76 | E23: =AmortizationSchedule[[#This Row],[CASH PAID]]-AmortizationSchedule[[#This Row],[EXPENSE]] -> $2,881.69 | F23: =IF(AmortizationSchedule[[#This Row],[PAYMENTS]]=1,PurchasePrice-AmortizationSchedule[[#This Row],[OR PREMIUM]],$F22-AmortizationSchedule[[#This Row],[OR PREMIUM]])*(AmortizationSchedule[[#This Row],[PAYMENTS]]>0) -> $74,148.76
B24: =IF(YearsToMaturity*2>=ROW()-ROW(AmortizationSchedule[])+1,ROW()-ROW(AmortizationSchedule[])+1,0) -> 11 | C24: =(AmortizationSchedule[[#This Row],[PAYMENTS]]>0)*FaceValue*CouponRate*0.5 -> $4,807.45 | D24: =(AmortizationSchedule[[#This Row],[PAYMENTS]]>0)*EffectiveRate*0.5*IF(AmortizationSchedule[[#This Row],[PAYMENTS]]=1,PurchasePrice,$F23) -> $1,853.72 | E24: =AmortizationSchedule[[#This Row],[CASH PAID]]-AmortizationSchedule[[#This Row],[EXPENSE]] -> $2,953.73 | F24: =IF(AmortizationSchedule[[#This Row],[PAYMENTS]]=1,PurchasePrice-AmortizationSchedule[[#This Row],[OR PREMIUM]],$F23-AmortizationSchedule[[#This Row],[OR PREMIUM]])*(AmortizationSchedule[[#This Row],[PAYMENTS]]>0) -> $71,195.03
B25: =IF(YearsToMaturity*2>=ROW()-ROW(AmortizationSchedule[])+1,ROW()-ROW(AmortizationSchedule[])+1,0) -> 12 | C25: =(AmortizationSchedule[[#This Row],[PAYMENTS]]>0)*FaceValue*CouponRate*0.5 -> $4,807.45 | D25: =(AmortizationSchedule[[#This Row],[PAYMENTS]]>0)*EffectiveRate*0.5*IF(AmortizationSchedule[[#This Row],[PAYMENTS]]=1,PurchasePrice,$F24) -> $1,779.88 | E25: =AmortizationSchedule[[#This Row],[CASH PAID]]-AmortizationSchedule[[#This Row],[EXPENSE]] -> $3,027.57 | F25: =IF(AmortizationSchedule[[#This Row],[PAYMENTS]]=1,PurchasePrice-AmortizationSchedule[[#This Row],[OR PREMIUM]],$F24-AmortizationSchedule[[#This Row],[OR PREMIUM]])*(AmortizationSchedule[[#This Row],[PAYMENTS]]>0) -> $68,167.45
B26: =IF(YearsToMaturity*2>=ROW()-ROW(AmortizationSchedule[])+1,ROW()-ROW(AmortizationSchedule[])+1,0) -> 13 | C26: =(AmortizationSchedule[[#This Row],[PAYMENTS]]>0)*FaceValue*CouponRate*0.5 -> $4,807.45 | D26: =(AmortizationSchedule[[#This Row],[PAYMENTS]]>0)*EffectiveRate*0.5*IF(AmortizationSchedule[[#This Row],[PAYMENTS]]=1,PurchasePrice,$F25) -> $1,704.19 | E26: =AmortizationSchedule[[#This Row],[CASH PAID]]-AmortizationSchedule[[#This Row],[EXPENSE]] -> $3,103.26 | F26: =IF(AmortizationSchedule[[#This Row],[PAYMENTS]]=1,PurchasePrice-AmortizationSchedule[[#This Row],[OR PREMIUM]],$F25-AmortizationSchedule[[#This Row],[OR PREMIUM]])*(AmortizationSchedule[[#This Row],[PAYMENTS]]>0) -> $65,064.19
B27: =IF(YearsToMaturity*2>=ROW()-ROW(AmortizationSchedule[])+1,ROW()-ROW(AmortizationSchedule[])+1,0) -> 14 | C27: =(AmortizationSchedule[[#This Row],[PAYMENTS]]>0)*FaceValue*CouponRate*0.5 -> $4,807.45 | D27: =(AmortizationSchedule[[#This Row],[PAYMENTS]]>0)*EffectiveRate*0.5*IF(AmortizationSchedule[[#This Row],[PAYMENTS]]=1,PurchasePrice,$F26) -> $1,626.60 | E27: =AmortizationSchedule[[#This Row],[CASH PAID]]-AmortizationSchedule[[#This Row],[EXPENSE]] -> $3,180.85 | F27: =IF(AmortizationSchedule[[#This Row],[PAYMENTS]]=1,PurchasePrice-AmortizationSchedule[[#This Row],[OR PREMIUM]],$F26-AmortizationSchedule[[#This Row],[OR PREMIUM]])*(AmortizationSchedule[[#This Row],[PAYMENTS]]>0) -> $61,883.34
B28: =IF(YearsToMaturity*2>=ROW()-ROW(AmortizationSchedule[])+1,ROW()-ROW(AmortizationSchedule[])+1,0) -> 15 | C28: =(AmortizationSchedule[[#This Row],[PAYMENTS]]>0)*FaceValue*CouponRate*0.5 -> $4,807.45 | D28: =(AmortizationSchedule[[#This Row],[PAYMENTS]]>0)*EffectiveRate*0.5*IF(AmortizationSchedule[[#This Row],[PAYMENTS]]=1,PurchasePrice,$F27) -> $1,547.08 | E28: =AmortizationSchedule[[#This Row],[CASH PAID]]-AmortizationSchedule[[#This Row],[EXPENSE]] -> $3,260.37 | F28: =IF(AmortizationSchedule[[#This Row],[PAYMENTS]]=1,PurchasePrice-AmortizationSchedule[[#This Row],[OR PREMIUM]],$F27-AmortizationSchedule[[#This Row],[OR PREMIUM]])*(AmortizationSchedule[[#This Row],[PAYMENTS]]>0) -> $58,622.98
B29: =IF(YearsToMaturity*2>=ROW()-ROW(AmortizationSchedule[])+1,ROW()-ROW(AmortizationSchedule[])+1,0) -> 16 | C29: =(AmortizationSchedule[[#This Row],[PAYMENTS]]>0)*FaceValue*CouponRate*0.5 -> $4,807.45 | D29: =(AmortizationSchedule[[#This Row],[PAYMENTS]]>0)*EffectiveRate*0.5*IF(AmortizationSchedule[[#This Row],[PAYMENTS]]=1,PurchasePrice,$F28) -> $1,465.57 | E29: =AmortizationSchedule[[#This Row],[CASH PAID]]-AmortizationSchedule[[#This Row],[EXPENSE]] -> $3,341.88 | F29: =IF(AmortizationSchedule[[#This Row],[PAYMENTS]]=1,PurchasePrice-AmortizationSchedule[[#This Row],[OR PREMIUM]],$F28-AmortizationSchedule[[#This Row],[OR PREMIUM]])*(AmortizationSchedule[[#This Row],[PAYMENTS]]>0) -> $55,281.10
B30: =IF(YearsToMaturity*2>=ROW()-ROW(AmortizationSchedule[])+1,ROW()-ROW(AmortizationSchedule[])+1,0) -> 17 | C30: =(AmortizationSchedule[[#This Row],[PAYMENTS]]>0)*FaceValue*CouponRate*0.5 -> $4,807.45 | D30: =(AmortizationSchedule[[#This Row],[PAYMENTS]]>0)*EffectiveRate*0.5*IF(AmortizationSchedule[[#This Row],[PAYMENTS]]=1,PurchasePrice,$F29) -> $1,382.03 | E30: =AmortizationSchedule[[#This Row],[CASH PAID]]-AmortizationSchedule[[#This Row],[EXPENSE]] -> $3,425.42 | F30: =IF(AmortizationSchedule[[#This Row],[PAYMENTS]]=1,PurchasePrice-AmortizationSchedule[[#This Row],[OR PREMIUM]],$F29-AmortizationSchedule[[#This Row],[OR PREMIUM]])*(AmortizationSchedule[[#This Row],[PAYMENTS]]>0) -> $51,855.68
B31: =IF(YearsToMaturity*2>=ROW()-ROW(AmortizationSchedule[])+1,ROW()-ROW(AmortizationSchedule[])+1,0) -> 18 | C31: =(AmortizationSchedule[[#This Row],[PAYMENTS]]>0)*FaceValue*CouponRate*0.5 -> $4,807.45 | D31: =(AmortizationSchedule[[#This Row],[PAYMENTS]]>0)*EffectiveRate*0.5*IF(AmortizationSchedule[[#This Row],[PAYMENTS]]=1,PurchasePrice,$F30) -> $1,296.39 | E31: =AmortizationSchedule[[#This Row],[CASH PAID]]-AmortizationSchedule[[#This Row],[EXPENSE]] -> $3,511.06 | F31: =IF(AmortizationSchedule[[#This Row],[PAYMENTS]]=1,PurchasePrice-AmortizationSchedule[[#This Row],[OR PREMIUM]],$F30-AmortizationSchedule[[#This Row],[OR PREMIUM]])*(AmortizationSchedule[[#This Row],[PAYMENTS]]>0) -> $48,344.62
B32: =IF(YearsToMaturity*2>=ROW()-ROW(AmortizationSchedule[])+1,ROW()-ROW(AmortizationSchedule[])+1,0) -> 19 | C32: =(AmortizationSchedule[[#This Row],[PAYMENTS]]>0)*FaceValue*CouponRate*0.5 -> $4,807.45 | D32: =(AmortizationSchedule[[#This Row],[PAYMENTS]]>0)*EffectiveRate*0.5*IF(AmortizationSchedule[[#This Row],[PAYMENTS]]=1,PurchasePrice,$F31) -> $1,208.62 | E32: =AmortizationSchedule[[#This Row],[CASH PAID]]-AmortizationSchedule[[#This Row],[EXPENSE]] -> $3,598.83 | F32: =IF(AmortizationSchedule[[#This Row],[PAYMENTS]]=1,PurchasePrice-AmortizationSchedule[[#This Row],[OR PREMIUM]],$F31-AmortizationSchedule[[#This Row],[OR PREMIUM]])*(AmortizationSchedule[[#This Row],[PAYMENTS]]>0) -> $44,745.79
B33: =IF(YearsToMaturity*2>=ROW()-ROW(AmortizationSchedule[])+1,ROW()-ROW(AmortizationSchedule[])+1,0) -> 20 | C33: =(AmortizationSchedule[[#This Row],[PAYMENTS]]>0)*FaceValue*CouponRate*0.5 -> $4,807.45 | D33: =(AmortizationSchedule[[#This Row],[PAYMENTS]]>0)*EffectiveRate*0.5*IF(AmortizationSchedule[[#This Row],[PAYMENTS]]=1,PurchasePrice,$F32) -> $1,118.64 | E33: =AmortizationSchedule[[#This Row],[CASH PAID]]-AmortizationSchedule[[#This Row],[EXPENSE]] -> $3,688.81 | F33: =IF(AmortizationSchedule[[#This Row],[PAYMENTS]]=1,PurchasePrice-AmortizationSchedule[[#This Row],[OR PREMIUM]],$F32-AmortizationSchedule[[#This Row],[OR PREMIUM]])*(AmortizationSchedule[[#This Row],[PAYMENTS]]>0) -> $41,056.98
B34: =IF(YearsToMaturity*2>=ROW()-ROW(AmortizationSchedule[])+1,ROW()-ROW(AmortizationSchedule[])+1,0) -> 0 | C34: =(AmortizationSchedule[[#This Row],[PAYMENTS]]>0)*FaceValue*CouponRate*0.5 -> 0 | D34: =(AmortizationSchedule[[#This Row],[PAYMENTS]]>0)*EffectiveRate*0.5*IF(AmortizationSchedule[[#This Row],[PAYMENTS]]=1,PurchasePrice,$F33) -> 0 | E34: =AmortizationSchedule[[#This Row],[CASH PAID]]-AmortizationSchedule[[#This Row],[EXPENSE]] -> 0 | F34: =IF(AmortizationSchedule[[#This Row],[PAYMENTS]]=1,PurchasePrice-AmortizationSchedule[[#This Row],[OR PREMIUM]],$F33-AmortizationSchedule[[#This Row],[OR PREMIUM]])*(AmortizationSchedule[[#This Row],[PAYMENTS]]>0) -> 0
B35: =IF(YearsToMaturity*2>=ROW()-ROW(AmortizationSchedule[])+1,ROW()-ROW(AmortizationSchedule[])+1,0) -> 0 | C35: =(AmortizationSchedule[[#This Row],[PAYMENTS]]>0)*FaceValue*CouponRate*0.5 -> 0 | D35: =(AmortizationSchedule[[#This Row],[PAYMENTS]]>0)*EffectiveRate*0.5*IF(AmortizationSchedule[[#This Row],[PAYMENTS]]=1,PurchasePrice,$F34) -> 0 | E35: =AmortizationSchedule[[#This Row],[CASH PAID]]-AmortizationSchedule[[#This Row],[EXPENSE]] -> 0 | F35: =IF(AmortizationSchedule[[#This Row],[PAYMENTS]]=1,PurchasePrice-AmortizationSchedule[[#This Row],[OR PREMIUM]],$F34-AmortizationSchedule[[#This Row],[OR PREMIUM]])*(AmortizationSchedule[[#This Row],[PAYMENTS]]>0) -> 0
B36: =IF(YearsToMaturity*2>=ROW()-ROW(AmortizationSchedule[])+1,ROW()-ROW(AmortizationSchedule[])+1,0) -> 0 | C36: =(AmortizationSchedule[[#This Row],[PAYMENTS]]>0)*FaceValue*CouponRate*0.5 -> 0 | D36: =(AmortizationSchedule[[#This Row],[PAYMENTS]]>0)*EffectiveRate*0.5*IF(AmortizationSchedule[[#This Row],[PAYMENTS]]=1,PurchasePrice,$F35) -> 0 | E36: =AmortizationSchedule[[#This Row],[CASH PAID]]-AmortizationSchedule[[#This Row],[EXPENSE]] -> 0 | F36: =IF(AmortizationSchedule[[#This Row],[PAYMENTS]]=1,PurchasePrice-AmortizationSchedule[[#This Row],[OR PREMIUM]],$F35-AmortizationSchedule[[#This Row],[OR PREMIUM]])*(AmortizationSchedule[[#This Row],[PAYMENTS]]>0) -> 0
B37: =IF(YearsToMaturity*2>=ROW()-ROW(AmortizationSchedule[])+1,ROW()-ROW(AmortizationSchedule[])+1,0) -> 0 | C37: =(AmortizationSchedule[[#This Row],[PAYMENTS]]>0)*FaceValue*CouponRate*0.5 -> 0 | D37: =(AmortizationSchedule[[#This Row],[PAYMENTS]]>0)*EffectiveRate*0.5*IF(AmortizationSchedule[[#This Row],[PAYMENTS]]=1,PurchasePrice,$F36) -> 0 | E37: =AmortizationSchedule[[#This Row],[CASH PAID]]-AmortizationSchedule[[#This Row],[EXPENSE]] -> 0 | F37: =IF(AmortizationSchedule[[#This Row],[PAYMENTS]]=1,PurchasePrice-AmortizationSchedule[[#This Row],[OR PREMIUM]],$F36-AmortizationSchedule[[#This Row],[OR PREMIUM]])*(AmortizationSchedule[[#This Row],[PAYMENTS]]>0) -> 0
B38: =IF(YearsToMaturity*2>=ROW()-ROW(AmortizationSchedule[])+1,ROW()-ROW(AmortizationSchedule[])+1,0) -> 0 | C38: =(AmortizationSchedule[[#This Row],[PAYMENTS]]>0)*FaceValue*CouponRate*0.5 -> 0 | D38: =(AmortizationSchedule[[#This Row],[PAYMENTS]]>0)*EffectiveRate*0.5*IF(AmortizationSchedule[[#This Row],[PAYMENTS]]=1,PurchasePrice,$F37) -> 0 | E38: =AmortizationSchedule[[#This Row],[CASH PAID]]-AmortizationSchedule[[#This Row],[EXPENSE]] -> 0 | F38: =IF(AmortizationSchedule[[#This Row],[PAYMENTS]]=1,PurchasePrice-AmortizationSchedule[[#This Row],[OR PREMIUM]],$F37-AmortizationSchedule[[#This Row],[OR PREMIUM]])*(AmortizationSchedule[[#This Row],[PAYMENTS]]>0) -> 0
B39: =IF(YearsToMaturity*2>=ROW()-ROW(AmortizationSchedule[])+1,ROW()-ROW(AmortizationSchedule[])+1,0) -> 0 | C39: =(AmortizationSchedule[[#This Row],[PAYMENTS]]>0)*FaceValue*CouponRate*0.5 -> 0 | D39: =(AmortizationSchedule[[#This Row],[PAYMENTS]]>0)*EffectiveRate*0.5*IF(AmortizationSchedule[[#This Row],[PAYMENTS]]=1,PurchasePrice,$F38) -> 0 | E39: =AmortizationSchedule[[#This Row],[CASH PAID]]-AmortizationSchedule[[#This Row],[EXPENSE]] -> 0 | F39: =IF(AmortizationSchedule[[#This Row],[PAYMENTS]]=1,PurchasePrice-AmortizationSchedule[[#This Row],[OR PREMIUM]],$F38-AmortizationSchedule[[#This Row],[OR PREMIUM]])*(AmortizationSchedule[[#This Row],[PAYMENTS]]>0) -> 0
B40: =IF(YearsToMaturity*2>=ROW()-ROW(AmortizationSchedule[])+1,ROW()-ROW(AmortizationSchedule[])+1,0) -> 0 | C40: =(AmortizationSchedule[[#This Row],[PAYMENTS]]>0)*FaceValue*CouponRate*0.5 -> 0 | D40: =(AmortizationSchedule[[#This Row],[PAYMENTS]]>0)*EffectiveRate*0.5*IF(AmortizationSchedule[[#This Row],[PAYMENTS]]=1,PurchasePrice,$F39) -> 0 | E40: =AmortizationSchedule[[#This Row],[CASH PAID]]-AmortizationSchedule[[#This Row],[EXPENSE]] -> 0 | F40: =IF(AmortizationSchedule[[#This Row],[PAYMENTS]]=1,PurchasePrice-AmortizationSchedule[[#This Row],[OR PREMIUM]],$F39-AmortizationSchedule[[#This Row],[OR PREMIUM]])*(AmortizationSchedule[[#This Row],[PAYMENTS]]>0) -> 0
B41: =IF(YearsToMaturity*2>=ROW()-ROW(AmortizationSchedule[])+1,ROW()-ROW(AmortizationSchedule[])+1,0) -> 0 | C41: =(AmortizationSchedule[[#This Row],[PAYMENTS]]>0)*FaceValue*CouponRate*0.5 -> 0 | D41: =(AmortizationSchedule[[#This Row],[PAYMENTS]]>0)*EffectiveRate*0.5*IF(AmortizationSchedule[[#This Row],[PAYMENTS]]=1,PurchasePrice,$F40) -> 0 | E41: =AmortizationSchedule[[#This Row],[CASH PAID]]-AmortizationSchedule[[#This Row],[EXPENSE]] -> 0 | F41: =IF(AmortizationSchedule[[#This Row],[PAYMENTS]]=1,PurchasePrice-AmortizationSchedule[[#This Row],[OR PREMIUM]],$F40-AmortizationSchedule[[#This Row],[OR PREMIUM]])*(AmortizationSchedule[[#This Row],[PAYMENTS]]>0) -> 0
B42: =IF(YearsToMaturity*2>=ROW()-ROW(AmortizationSchedule[])+1,ROW()-ROW(AmortizationSchedule[])+1,0) -> 0 | C42: =(AmortizationSchedule[[#This Row],[PAYMENTS]]>0)*FaceValue*CouponRate*0.5 -> 0 | D42: =(AmortizationSchedule[[#This Row],[PAYMENTS]]>0)*EffectiveRate*0.5*IF(AmortizationSchedule[[#This Row],[PAYMENTS]]=1,PurchasePrice,$F41) -> 0 | E42: =AmortizationSchedule[[#This Row],[CASH PAID]]-AmortizationSchedule[[#This Row],[EXPENSE]] -> 0 | F42: =IF(AmortizationSchedule[[#This Row],[PAYMENTS]]=1,PurchasePrice-AmortizationSchedule[[#This Row],[OR PREMIUM]],$F41-AmortizationSchedule[[#This Row],[OR PREMIUM]])*(AmortizationSchedule[[#This Row],[PAYMENTS]]>0) -> 0
B43: =IF(YearsToMaturity*2>=ROW()-ROW(AmortizationSchedule[])+1,ROW()-ROW(AmortizationSchedule[])+1,0) -> 0 | C43: =(AmortizationSchedule[[#This Row],[PAYMENTS]]>0)*FaceValue*CouponRate*0.5 -> 0 | D43: =(AmortizationSchedule[[#This Row],[PAYMENTS]]>0)*EffectiveRate*0.5*IF(AmortizationSchedule[[#This Row],[PAYMENTS]]=1,PurchasePrice,$F42) -> 0 | E43: =AmortizationSchedule[[#This Row],[CASH PAID]]-AmortizationSchedule[[#This Row],[EXPENSE]] -> 0 | F43: =IF(AmortizationSchedule[[#This Row],[PAYMENTS]]=1,PurchasePrice-AmortizationSchedule[[#This Row],[OR PREMIUM]],$F42-AmortizationSchedule[[#This Row],[OR PREMIUM]])*(AmortizationSchedule[[#This Row],[PAYMENTS]]>0) -> 0
B44: =IF(YearsToMaturity*2>=ROW()-ROW(AmortizationSchedule[])+1,ROW()-ROW(AmortizationSchedule[])+1,0) -> 0 | C44: =(AmortizationSchedule[[#This Row],[PAYMENTS]]>0)*FaceValue*CouponRate*0.5 -> 0 | D44: =(AmortizationSchedule[[#This Row],[PAYMENTS]]>0)*EffectiveRate*0.5*IF(AmortizationSchedule[[#This Row],[PAYMENTS]]=1,PurchasePrice,$F43) -> 0 | E44: =AmortizationSchedule[[#This Row],[CASH PAID]]-AmortizationSchedule[[#This Row],[EXPENSE]] -> 0 | F44: =IF(AmortizationSchedule[[#This Row],[PAYMENTS]]=1,PurchasePrice-AmortizationSchedule[[#This Row],[OR PREMIUM]],$F43-AmortizationSchedule[[#This Row],[OR PREMIUM]])*(AmortizationSchedule[[#This Row],[PAYMENTS]]>0) -> 0
B45: =IF(YearsToMaturity*2>=ROW()-ROW(AmortizationSchedule[])+1,ROW()-ROW(AmortizationSchedule[])+1,0) -> 0 | C45: =(AmortizationSchedule[[#This Row],[PAYMENTS]]>0)*FaceValue*CouponRate*0.5 -> 0 | D45: =(AmortizationSchedule[[#This Row],[PAYMENTS]]>0)*EffectiveRate*0.5*IF(AmortizationSchedule[[#This Row],[PAYMENTS]]=1,PurchasePrice,$F44) -> 0 | E45: =AmortizationSchedule[[#This Row],[CASH PAID]]-AmortizationSchedule[[#This Row],[EXPENSE]] -> 0 | F45: =IF(AmortizationSchedule[[#This Row],[PAYMENTS]]=1,PurchasePrice-AmortizationSchedule[[#This Row],[OR PREMIUM]],$F44-AmortizationSchedule[[#This Row],[OR PREMIUM]])*(AmortizationSchedule[[#This Row],[PAYMENTS]]>0) -> 0
B46: =IF(YearsToMaturity*2>=ROW()-ROW(AmortizationSchedule[])+1,ROW()-ROW(AmortizationSchedule[])+1,0) -> 0 | C46: =(AmortizationSchedule[[#This Row],[PAYMENTS]]>0)*FaceValue*CouponRate*0.5 -> 0 | D46: =(AmortizationSchedule[[#This Row],[PAYMENTS]]>0)*EffectiveRate*0.5*IF(AmortizationSchedule[[#This Row],[PAYMENTS]]=1,PurchasePrice,$F45) -> 0 | E46: =AmortizationSchedule[[#This Row],[CASH PAID]]-AmortizationSchedule[[#This Row],[EXPENSE]] -> 0 | F46: =IF(AmortizationSchedule[[#This Row],[PAYMENTS]]=1,PurchasePrice-AmortizationSchedule[[#This Row],[OR PREMIUM]],$F45-AmortizationSchedule[[#This Row],[OR PREMIUM]])*(AmortizationSchedule[[#This Row],[PAYMENTS]]>0) -> 0
B47: =IF(YearsToMaturity*2>=ROW()-ROW(AmortizationSchedule[])+1,ROW()-ROW(AmortizationSchedule[])+1,0) -> 0 | C47: =(AmortizationSchedule[[#This Row],[PAYMENTS]]>0)*FaceValue*CouponRate*0.5 -> 0 | D47: =(AmortizationSchedule[[#This Row],[PAYMENTS]]>0)*EffectiveRate*0.5*IF(AmortizationSchedule[[#This Row],[PAYMENTS]]=1,PurchasePrice,$F46) -> 0 | E47: =AmortizationSchedule[[#This Row],[CASH PAID]]-AmortizationSchedule[[#This Row],[EXPENSE]] -> 0 | F47: =IF(AmortizationSchedule[[#This Row],[PAYMENTS]]=1,PurchasePrice-AmortizationSchedule[[#This Row],[OR PREMIUM]],$F46-AmortizationSchedule[[#This Row],[OR PREMIUM]])*(AmortizationSchedule[[#This Row],[PAYMENTS]]>0) -> 0
B48: =IF(YearsToMaturity*2>=ROW()-ROW(AmortizationSchedule[])+1,ROW()-ROW(AmortizationSchedule[])+1,0) -> 0 | C48: =(AmortizationSchedule[[#This Row],[PAYMENTS]]>0)*FaceValue*CouponRate*0.5 -> 0 | D48: =(AmortizationSchedule[[#This Row],[PAYMENTS]]>0)*EffectiveRate*0.5*IF(AmortizationSchedule[[#This Row],[PAYMENTS]]=1,PurchasePrice,$F47) -> 0 | E48: =AmortizationSchedule[[#This Row],[CASH PAID]]-AmortizationSchedule[[#This Row],[EXPENSE]] -> 0 | F48: =IF(AmortizationSchedule[[#This Row],[PAYMENTS]]=1,PurchasePrice-AmortizationSchedule[[#This Row],[OR PREMIUM]],$F47-AmortizationSchedule[[#This Row],[OR PREMIUM]])*(AmortizationSchedule[[#This Row],[PAYMENTS]]>0) -> 0

Sheet Bond Amortization (Print)
A2: OUR BOND
A3: amortization
B5: BOND PURCHASE PRICE | C5: =PurchasePrice -> $100,000.00
B6: FACE VALUE OF BOND | C6: =FaceValue -> $96,149.00
B7: YEARS UNTIL MATURITY | C7: 15
B8: COUPON RATE | C8: =CouponRate -> 10.00%
B9: EFFECTIVE RATE | C9: =EffectiveRate -> 5.00%
E11: AMORTIZATION
E12: OF (DISCOUNT) | F12: CARRYING
B13: PAYMENTS | C13: CASH PAID | D13: EXPENSE | E13: OR PREMIUM | F13: AMOUNT
B14: =IF(YearsToMaturity*2>=ROW()-ROW(AmortizationSchedule4[])+1,ROW()-ROW(AmortizationSchedule4[])+1,0) -> 1 | C14: =(AmortizationSchedule4[[#This Row],[PAYMENTS]]>0)*FaceValue*CouponRate*0.5 -> $4,807.45 | D14: =(AmortizationSchedule4[[#This Row],[PAYMENTS]]>0)*EffectiveRate*0.5*IF(AmortizationSchedule4[[#This Row],[PAYMENTS]]=1,PurchasePrice,$F13) -> $2,500.00 | E14: =AmortizationSchedule4[[#This Row],[CASH PAID]]-AmortizationSchedule4[[#This Row],[EXPENSE]] -> $2,307.45 | F14: =IF(AmortizationSchedule4[[#This Row],[PAYMENTS]]=1,PurchasePrice-AmortizationSchedule4[[#This Row],[OR PREMIUM]],$F13-AmortizationSchedule4[[#This Row],[OR PREMIUM]])*(AmortizationSchedule4[[#This Row],[PAYMENTS]]>0) -> $97,692.55
B15: =IF(YearsToMaturity*2>=ROW()-ROW(AmortizationSchedule4[])+1,ROW()-ROW(AmortizationSchedule4[])+1,0) -> 2 | C15: =(AmortizationSchedule4[[#This Row],[PAYMENTS]]>0)*FaceValue*CouponRate*0.5 -> $4,807.45 | D15: =(AmortizationSchedule4[[#This Row],[PAYMENTS]]>0)*EffectiveRate*0.5*IF(AmortizationSchedule4[[#This Row],[PAYMENTS]]=1,PurchasePrice,$F14) -> $2,442.31 | E15: =AmortizationSchedule4[[#This Row],[CASH PAID]]-AmortizationSchedule4[[#This Row],[EXPENSE]] -> $2,365.14 | F15: =IF(AmortizationSchedule4[[#This Row],[PAYMENTS]]=1,PurchasePrice-AmortizationSchedule4[[#This Row],[OR PREMIUM]],$F14-AmortizationSchedule4[[#This Row],[OR PREMIUM]])*(AmortizationSchedule4[[#This Row],[PAYMENTS]]>0) -> $95,327.41
B16: =IF(YearsToMaturity*2>=ROW()-ROW(AmortizationSchedule4[])+1,ROW()-ROW(AmortizationSchedule4[])+1,0) -> 3 | C16: =(AmortizationSchedule4[[#This Row],[PAYMENTS]]>0)*FaceValue*CouponRate*0.5 -> $4,807.45 | D16: =(AmortizationSchedule4[[#This Row],[PAYMENTS]]>0)*EffectiveRate*0.5*IF(AmortizationSchedule4[[#This Row],[PAYMENTS]]=1,PurchasePrice,$F15) -> $2,383.19 | E16: =AmortizationSchedule4[[#This Row],[CASH PAID]]-AmortizationSchedule4[[#This Row],[EXPENSE]] -> $2,424.26 | F16: =IF(AmortizationSchedule4[[#This Row],[PAYMENTS]]=1,PurchasePrice-AmortizationSchedule4[[#This Row],[OR PREMIUM]],$F15-AmortizationSchedule4[[#This Row],[OR PREMIUM]])*(AmortizationSchedule4[[#This Row],[PAYMENTS]]>0) -> $92,903.15
B17: =IF(YearsToMaturity*2>=ROW()-ROW(AmortizationSchedule4[])+1,ROW()-ROW(AmortizationSchedule4[])+1,0) -> 4 | C17: =(AmortizationSchedule4[[#This Row],[PAYMENTS]]>0)*FaceValue*CouponRate*0.5 -> $4,807.45 | D17: =(AmortizationSchedule4[[#This Row],[PAYMENTS]]>0)*EffectiveRate*0.5*IF(AmortizationSchedule4[[#This Row],[PAYMENTS]]=1,PurchasePrice,$F16) -> $2,322.58 | E17: =AmortizationSchedule4[[#This Row],[CASH PAID]]-AmortizationSchedule4[[#This Row],[EXPENSE]] -> $2,484.87 | F17: =IF(AmortizationSchedule4[[#This Row],[PAYMENTS]]=1,PurchasePrice-AmortizationSchedule4[[#This Row],[OR PREMIUM]],$F16-AmortizationSchedule4[[#This Row],[OR PREMIUM]])*(AmortizationSchedule4[[#This Row],[PAYMENTS]]>0) -> $90,418.28
B18: =IF(YearsToMaturity*2>=ROW()-ROW(AmortizationSchedule4[])+1,ROW()-ROW(AmortizationSchedule4[])+1,0) -> 5 | C18: =(AmortizationSchedule4[[#This Row],[PAYMENTS]]>0)*FaceValue*CouponRate*0.5 -> $4,807.45 | D18: =(AmortizationSchedule4[[#This Row],[PAYMENTS]]>0)*EffectiveRate*0.5*IF(AmortizationSchedule4[[#This Row],[PAYMENTS]]=1,PurchasePrice,$F17) -> $2,260.46 | E18: =AmortizationSchedule4[[#This Row],[CASH PAID]]-AmortizationSchedule4[[#This Row],[EXPENSE]] -> $2,546.99 | F18: =IF(AmortizationSchedule4[[#This Row],[PAYMENTS]]=1,PurchasePrice-AmortizationSchedule4[[#This Row],[OR PREMIUM]],$F17-AmortizationSchedule4[[#This Row],[OR PREMIUM]])*(AmortizationSchedule4[[#This Row],[PAYMENTS]]>0) -> $87,871.28
B19: =IF(YearsToMaturity*2>=ROW()-ROW(AmortizationSchedule4[])+1,ROW()-ROW(AmortizationSchedule4[])+1,0) -> 6 | C19: =(AmortizationSchedule4[[#This Row],[PAYMENTS]]>0)*FaceValue*CouponRate*0.5 -> $4,807.45 | D19: =(AmortizationSchedule4[[#This Row],[PAYMENTS]]>0)*EffectiveRate*0.5*IF(AmortizationSchedule4[[#This Row],[PAYMENTS]]=1,PurchasePrice,$F18) -> $2,196.78 | E19: =AmortizationSchedule4[[#This Row],[CASH PAID]]-AmortizationSchedule4[[#This Row],[EXPENSE]] -> $2,610.67 | F19: =IF(AmortizationSchedule4[[#This Row],[PAYMENTS]]=1,PurchasePrice-AmortizationSchedule4[[#This Row],[OR PREMIUM]],$F18-AmortizationSchedule4[[#This Row],[OR PREMIUM]])*(AmortizationSchedule4[[#This Row],[PAYMENTS]]>0) -> $85,260.62
B20: =IF(YearsToMaturity*2>=ROW()-ROW(AmortizationSchedule4[])+1,ROW()-ROW(AmortizationSchedule4[])+1,0) -> 7 | C20: =(AmortizationSchedule4[[#This Row],[PAYMENTS]]>0)*FaceValue*CouponRate*0.5 -> $4,807.45 | D20: =(AmortizationSchedule4[[#This Row],[PAYMENTS]]>0)*EffectiveRate*0.5*IF(AmortizationSchedule4[[#This Row],[PAYMENTS]]=1,PurchasePrice,$F19) -> $2,131.52 | E20: =AmortizationSchedule4[[#This Row],[CASH PAID]]-AmortizationSchedule4[[#This Row],[EXPENSE]] -> $2,675.93 | F20: =IF(AmortizationSchedule4[[#This Row],[PAYMENTS]]=1,PurchasePrice-AmortizationSchedule4[[#This Row],[OR PREMIUM]],$F19-AmortizationSchedule4[[#This Row],[OR PREMIUM]])*(AmortizationSchedule4[[#This Row],[PAYMENTS]]>0) -> $82,584.68
B21: =IF(YearsToMaturity*2>=ROW()-ROW(AmortizationSchedule4[])+1,ROW()-ROW(AmortizationSchedule4[])+1,0) -> 8 | C21: =(AmortizationSchedule4[[#This Row],[PAYMENTS]]>0)*FaceValue*CouponRate*0.5 -> $4,807.45 | D21: =(AmortizationSchedule4[[#This Row],[PAYMENTS]]>0)*EffectiveRate*0.5*IF(AmortizationSchedule4[[#This Row],[PAYMENTS]]=1,PurchasePrice,$F20) -> $2,064.62 | E21: =AmortizationSchedule4[[#This Row],[CASH PAID]]-AmortizationSchedule4[[#This Row],[EXPENSE]] -> $2,742.83 | F21: =IF(AmortizationSchedule4[[#This Row],[PAYMENTS]]=1,PurchasePrice-AmortizationSchedule4[[#This Row],[OR PREMIUM]],$F20-AmortizationSchedule4[[#This Row],[OR PREMIUM]])*(AmortizationSchedule4[[#This Row],[PAYMENTS]]>0) -> $79,841.85
B22: =IF(YearsToMaturity*2>=ROW()-ROW(AmortizationSchedule4[])+1,ROW()-ROW(AmortizationSchedule4[])+1,0) -> 9 | C22: =(AmortizationSchedule4[[#This Row],[PAYMENTS]]>0)*FaceValue*CouponRate*0.5 -> $4,807.45 | D22: =(AmortizationSchedule4[[#This Row],[PAYMENTS]]>0)*EffectiveRate*0.5*IF(AmortizationSchedule4[[#This Row],[PAYMENTS]]=1,PurchasePrice,$F21) -> $1,996.05 | E22: =AmortizationSchedule4[[#This Row],[CASH PAID]]-AmortizationSchedule4[[#This Row],[EXPENSE]] -> $2,811.40 | F22: =IF(AmortizationSchedule4[[#This Row],[PAYMENTS]]=1,PurchasePrice-AmortizationSchedule4[[#This Row],[OR PREMIUM]],$F21-AmortizationSchedule4[[#This Row],[OR PREMIUM]])*(AmortizationSchedule4[[#This Row],[PAYMENTS]]>0) -> $77,030.45
B23: =IF(YearsToMaturity*2>=ROW()-ROW(AmortizationSchedule4[])+1,ROW()-ROW(AmortizationSchedule4[])+1,0) -> 10 | C23: =(AmortizationSchedule4[[#This Row],[PAYMENTS]]>0)*FaceValue*CouponRate*0.5 -> $4,807.45 | D23: =(AmortizationSchedule4[[#This Row],[PAYMENTS]]>0)*EffectiveRate*0.5*IF(AmortizationSchedule4[[#This Row],[PAYMENTS]]=1,PurchasePrice,$F22) -> $1,925.76 | E23: =AmortizationSchedule4[[#This Row],[CASH PAID]]-AmortizationSchedule4[[#This Row],[EXPENSE]] -> $2,881.69 | F23: =IF(AmortizationSchedule4[[#This Row],[PAYMENTS]]=1,PurchasePrice-AmortizationSchedule4[[#This Row],[OR PREMIUM]],$F22-AmortizationSchedule4[[#This Row],[OR PREMIUM]])*(AmortizationSchedule4[[#This Row],[PAYMENTS]]>0) -> $74,148.76
B24: =IF(YearsToMaturity*2>=ROW()-ROW(AmortizationSchedule4[])+1,ROW()-ROW(AmortizationSchedule4[])+1,0) -> 11 | C24: =(AmortizationSchedule4[[#This Row],[PAYMENTS]]>0)*FaceValue*CouponRate*0.5 -> $4,807.45 | D24: =(AmortizationSchedule4[[#This Row],[PAYMENTS]]>0)*EffectiveRate*0.5*IF(AmortizationSchedule4[[#This Row],[PAYMENTS]]=1,PurchasePrice,$F23) -> $1,853.72 | E24: =AmortizationSchedule4[[#This Row],[CASH PAID]]-AmortizationSchedule4[[#This Row],[EXPENSE]] -> $2,953.73 | F24: =IF(AmortizationSchedule4[[#This Row],[PAYMENTS]]=1,PurchasePrice-AmortizationSchedule4[[#This Row],[OR PREMIUM]],$F23-AmortizationSchedule4[[#This Row],[OR PREMIUM]])*(AmortizationSchedule4[[#This Row],[PAYMENTS]]>0) -> $71,195.03
B25: =IF(YearsToMaturity*2>=ROW()-ROW(AmortizationSchedule4[])+1,ROW()-ROW(AmortizationSchedule4[])+1,0) -> 12 | C25: =(AmortizationSchedule4[[#This Row],[PAYMENTS]]>0)*FaceValue*CouponRate*0.5 -> $4,807.45 | D25: =(AmortizationSchedule4[[#This Row],[PAYMENTS]]>0)*EffectiveRate*0.5*IF(AmortizationSchedule4[[#This Row],[PAYMENTS]]=1,PurchasePrice,$F24) -> $1,779.88 | E25: =AmortizationSchedule4[[#This Row],[CASH PAID]]-AmortizationSchedule4[[#This Row],[EXPENSE]] -> $3,027.57 | F25: =IF(AmortizationSchedule4[[#This Row],[PAYMENTS]]=1,PurchasePrice-AmortizationSchedule4[[#This Row],[OR PREMIUM]],$F24-AmortizationSchedule4[[#This Row],[OR PREMIUM]])*(AmortizationSchedule4[[#This Row],[PAYMENTS]]>0) -> $68,167.45
B26: =IF(YearsToMaturity*2>=ROW()-ROW(AmortizationSchedule4[])+1,ROW()-ROW(AmortizationSchedule4[])+1,0) -> 13 | C26: =(AmortizationSchedule4[[#This Row],[PAYMENTS]]>0)*FaceValue*CouponRate*0.5 -> $4,807.45 | D26: =(AmortizationSchedule4[[#This Row],[PAYMENTS]]>0)*EffectiveRate*0.5*IF(AmortizationSchedule4[[#This Row],[PAYMENTS]]=1,PurchasePrice,$F25) -> $1,704.19 | E26: =AmortizationSchedule4[[#This Row],[CASH PAID]]-AmortizationSchedule4[[#This Row],[EXPENSE]] -> $3,103.26 | F26: =IF(AmortizationSchedule4[[#This Row],[PAYMENTS]]=1,PurchasePrice-AmortizationSchedule4[[#This Row],[OR PREMIUM]],$F25-AmortizationSchedule4[[#This Row],[OR PREMIUM]])*(AmortizationSchedule4[[#This Row],[PAYMENTS]]>0) -> $65,064.19
B27: =IF(YearsToMaturity*2>=ROW()-ROW(AmortizationSchedule4[])+1,ROW()-ROW(AmortizationSchedule4[])+1,0) -> 14 | C27: =(AmortizationSchedule4[[#This Row],[PAYMENTS]]>0)*FaceValue*CouponRate*0.5 -> $4,807.45 | D27: =(AmortizationSchedule4[[#This Row],[PAYMENTS]]>0)*EffectiveRate*0.5*IF(AmortizationSchedule4[[#This Row],[PAYMENTS]]=1,PurchasePrice,$F26) -> $1,626.60 | E27: =AmortizationSchedule4[[#This Row],[CASH PAID]]-AmortizationSchedule4[[#This Row],[EXPENSE]] -> $3,180.85 | F27: =IF(AmortizationSchedule4[[#This Row],[PAYMENTS]]=1,PurchasePrice-AmortizationSchedule4[[#This Row],[OR PREMIUM]],$F26-AmortizationSchedule4[[#This Row],[OR PREMIUM]])*(AmortizationSchedule4[[#This Row],[PAYMENTS]]>0) -> $61,883.34
B28: =IF(YearsToMaturity*2>=ROW()-ROW(AmortizationSchedule4[])+1,ROW()-ROW(AmortizationSchedule4[])+1,0) -> 15 | C28: =(AmortizationSchedule4[[#This Row],[PAYMENTS]]>0)*FaceValue*CouponRate*0.5 -> $4,807.45 | D28: =(AmortizationSchedule4[[#This Row],[PAYMENTS]]>0)*EffectiveRate*0.5*IF(AmortizationSchedule4[[#This Row],[PAYMENTS]]=1,PurchasePrice,$F27) -> $1,547.08 | E28: =AmortizationSchedule4[[#This Row],[CASH PAID]]-AmortizationSchedule4[[#This Row],[EXPENSE]] -> $3,260.37 | F28: =IF(AmortizationSchedule4[[#This Row],[PAYMENTS]]=1,PurchasePrice-AmortizationSchedule4[[#This Row],[OR PREMIUM]],$F27-AmortizationSchedule4[[#This Row],[OR PREMIUM]])*(AmortizationSchedule4[[#This Row],[PAYMENTS]]>0) -> $58,622.98
B29: =IF(YearsToMaturity*2>=ROW()-ROW(AmortizationSchedule4[])+1,ROW()-ROW(AmortizationSchedule4[])+1,0) -> 16 | C29: =(AmortizationSchedule4[[#This Row],[PAYMENTS]]>0)*FaceValue*CouponRate*0.5 -> $4,807.45 | D29: =(AmortizationSchedule4[[#This Row],[PAYMENTS]]>0)*EffectiveRate*0.5*IF(AmortizationSchedule4[[#This Row],[PAYMENTS]]=1,PurchasePrice,$F28) -> $1,465.57 | E29: =AmortizationSchedule4[[#This Row],[CASH PAID]]-AmortizationSchedule4[[#This Row],[EXPENSE]] -> $3,341.88 | F29: =IF(AmortizationSchedule4[[#This Row],[PAYMENTS]]=1,PurchasePrice-AmortizationSchedule4[[#This Row],[OR PREMIUM]],$F28-AmortizationSchedule4[[#This Row],[OR PREMIUM]])*(AmortizationSchedule4[[#This Row],[PAYMENTS]]>0) -> $55,281.10
B30: =IF(YearsToMaturity*2>=ROW()-ROW(AmortizationSchedule4[])+1,ROW()-ROW(AmortizationSchedule4[])+1,0) -> 17 | C30: =(AmortizationSchedule4[[#This Row],[PAYMENTS]]>0)*FaceValue*CouponRate*0.5 -> $4,807.45 | D30: =(AmortizationSchedule4[[#This Row],[PAYMENTS]]>0)*EffectiveRate*0.5*IF(AmortizationSchedule4[[#This Row],[PAYMENTS]]=1,PurchasePrice,$F29) -> $1,382.03 | E30: =AmortizationSchedule4[[#This Row],[CASH PAID]]-AmortizationSchedule4[[#This Row],[EXPENSE]] -> $3,425.42 | F30: =IF(AmortizationSchedule4[[#This Row],[PAYMENTS]]=1,PurchasePrice-AmortizationSchedule4[[#This Row],[OR PREMIUM]],$F29-AmortizationSchedule4[[#This Row],[OR PREMIUM]])*(AmortizationSchedule4[[#This Row],[PAYMENTS]]>0) -> $51,855.68
B31: =IF(YearsToMaturity*2>=ROW()-ROW(AmortizationSchedule4[])+1,ROW()-ROW(AmortizationSchedule4[])+1,0) -> 18 | C31: =(AmortizationSchedule4[[#This Row],[PAYMENTS]]>0)*FaceValue*CouponRate*0.5 -> $4,807.45 | D31: =(AmortizationSchedule4[[#This Row],[PAYMENTS]]>0)*EffectiveRate*0.5*IF(AmortizationSchedule4[[#This Row],[PAYMENTS]]=1,PurchasePrice,$F30) -> $1,296.39 | E31: =AmortizationSchedule4[[#This Row],[CASH PAID]]-AmortizationSchedule4[[#This Row],[EXPENSE]] -> $3,511.06 | F31: =IF(AmortizationSchedule4[[#This Row],[PAYMENTS]]=1,PurchasePrice-AmortizationSchedule4[[#This Row],[OR PREMIUM]],$F30-AmortizationSchedule4[[#This Row],[OR PREMIUM]])*(AmortizationSchedule4[[#This Row],[PAYMENTS]]>0) -> $48,344.62
B32: =IF(YearsToMaturity*2>=ROW()-ROW(AmortizationSchedule4[])+1,ROW()-ROW(AmortizationSchedule4[])+1,0) -> 19 | C32: =(AmortizationSchedule4[[#This Row],[PAYMENTS]]>0)*FaceValue*CouponRate*0.5 -> $4,807.45 | D32: =(AmortizationSchedule4[[#This Row],[PAYMENTS]]>0)*EffectiveRate*0.5*IF(AmortizationSchedule4[[#This Row],[PAYMENTS]]=1,PurchasePrice,$F31) -> $1,208.62 | E32: =AmortizationSchedule4[[#This Row],[CASH PAID]]-AmortizationSchedule4[[#This Row],[EXPENSE]] -> $3,598.83 | F32: =IF(AmortizationSchedule4[[#This Row],[PAYMENTS]]=1,PurchasePrice-AmortizationSchedule4[[#This Row],[OR PREMIUM]],$F31-AmortizationSchedule4[[#This Row],[OR PREMIUM]])*(AmortizationSchedule4[[#This Row],[PAYMENTS]]>0) -> $44,745.79
B33: =IF(YearsToMaturity*2>=ROW()-ROW(AmortizationSchedule4[])+1,ROW()-ROW(AmortizationSchedule4[])+1,0) -> 20 | C33: =(AmortizationSchedule4[[#This Row],[PAYMENTS]]>0)*FaceValue*CouponRate*0.5 -> $4,807.45 | D33: =(AmortizationSchedule4[[#This Row],[PAYMENTS]]>0)*EffectiveRate*0.5*IF(AmortizationSchedule4[[#This Row],[PAYMENTS]]=1,PurchasePrice,$F32) -> $1,118.64 | E33: =AmortizationSchedule4[[#This Row],[CASH PAID]]-AmortizationSchedule4[[#This Row],[EXPENSE]] -> $3,688.81 | F33: =IF(AmortizationSchedule4[[#This Row],[PAYMENTS]]=1,PurchasePrice-AmortizationSchedule4[[#This Row],[OR PREMIUM]],$F32-AmortizationSchedule4[[#This Row],[OR PREMIUM]])*(AmortizationSchedule4[[#This Row],[PAYMENTS]]>0) -> $41,056.98
B34: =IF(YearsToMaturity*2>=ROW()-ROW(AmortizationSchedule4[])+1,ROW()-ROW(AmortizationSchedule4[])+1,0) -> 0 | C34: =(AmortizationSchedule4[[#This Row],[PAYMENTS]]>0)*FaceValue*CouponRate*0.5 -> 0 | D34: =(AmortizationSchedule4[[#This Row],[PAYMENTS]]>0)*EffectiveRate*0.5*IF(AmortizationSchedule4[[#This Row],[PAYMENTS]]=1,PurchasePrice,$F33) -> 0 | E34: =AmortizationSchedule4[[#This Row],[CASH PAID]]-AmortizationSchedule4[[#This Row],[EXPENSE]] -> 0 | F34: =IF(AmortizationSchedule4[[#This Row],[PAYMENTS]]=1,PurchasePrice-AmortizationSchedule4[[#This Row],[OR PREMIUM]],$F33-AmortizationSchedule4[[#This Row],[OR PREMIUM]])*(AmortizationSchedule4[[#This Row],[PAYMENTS]]>0) -> 0
B35: =IF(YearsToMaturity*2>=ROW()-ROW(AmortizationSchedule4[])+1,ROW()-ROW(AmortizationSchedule4[])+1,0) -> 0 | C35: =(AmortizationSchedule4[[#This Row],[PAYMENTS]]>0)*FaceValue*CouponRate*0.5 -> 0 | D35: =(AmortizationSchedule4[[#This Row],[PAYMENTS]]>0)*EffectiveRate*0.5*IF(AmortizationSchedule4[[#This Row],[PAYMENTS]]=1,PurchasePrice,$F34) -> 0 | E35: =AmortizationSchedule4[[#This Row],[CASH PAID]]-AmortizationSchedule4[[#This Row],[EXPENSE]] -> 0 | F35: =IF(AmortizationSchedule4[[#This Row],[PAYMENTS]]=1,PurchasePrice-AmortizationSchedule4[[#This Row],[OR PREMIUM]],$F34-AmortizationSchedule4[[#This Row],[OR PREMIUM]])*(AmortizationSchedule4[[#This Row],[PAYMENTS]]>0) -> 0
B36: =IF(YearsToMaturity*2>=ROW()-ROW(AmortizationSchedule4[])+1,ROW()-ROW(AmortizationSchedule4[])+1,0) -> 0 | C36: =(AmortizationSchedule4[[#This Row],[PAYMENTS]]>0)*FaceValue*CouponRate*0.5 -> 0 | D36: =(AmortizationSchedule4[[#This Row],[PAYMENTS]]>0)*EffectiveRate*0.5*IF(AmortizationSchedule4[[#This Row],[PAYMENTS]]=1,PurchasePrice,$F35) -> 0 | E36: =AmortizationSchedule4[[#This Row],[CASH PAID]]-AmortizationSchedule4[[#This Row],[EXPENSE]] -> 0 | F36: =IF(AmortizationSchedule4[[#This Row],[PAYMENTS]]=1,PurchasePrice-AmortizationSchedule4[[#This Row],[OR PREMIUM]],$F35-AmortizationSchedule4[[#This Row],[OR PREMIUM]])*(AmortizationSchedule4[[#This Row],[PAYMENTS]]>0) -> 0
B37: =IF(YearsToMaturity*2>=ROW()-ROW(AmortizationSchedule4[])+1,ROW()-ROW(AmortizationSchedule4[])+1,0) -> 0 | C37: =(AmortizationSchedule4[[#This Row],[PAYMENTS]]>0)*FaceValue*CouponRate*0.5 -> 0 | D37: =(AmortizationSchedule4[[#This Row],[PAYMENTS]]>0)*EffectiveRate*0.5*IF(AmortizationSchedule4[[#This Row],[PAYMENTS]]=1,PurchasePrice,$F36) -> 0 | E37: =AmortizationSchedule4[[#This Row],[CASH PAID]]-AmortizationSchedule4[[#This Row],[EXPENSE]] -> 0 | F37: =IF(AmortizationSchedule4[[#This Row],[PAYMENTS]]=1,PurchasePrice-AmortizationSchedule4[[#This Row],[OR PREMIUM]],$F36-AmortizationSchedule4[[#This Row],[OR PREMIUM]])*(AmortizationSchedule4[[#This Row],[PAYMENTS]]>0) -> 0
B38: =IF(YearsToMaturity*2>=ROW()-ROW(AmortizationSchedule4[])+1,ROW()-ROW(AmortizationSchedule4[])+1,0) -> 0 | C38: =(AmortizationSchedule4[[#This Row],[PAYMENTS]]>0)*FaceValue*CouponRate*0.5 -> 0 | D38: =(AmortizationSchedule4[[#This Row],[PAYMENTS]]>0)*EffectiveRate*0.5*IF(AmortizationSchedule4[[#This Row],[PAYMENTS]]=1,PurchasePrice,$F37) -> 0 | E38: =AmortizationSchedule4[[#This Row],[CASH PAID]]-AmortizationSchedule4[[#This Row],[EXPENSE]] -> 0 | F38: =IF(AmortizationSchedule4[[#This Row],[PAYMENTS]]=1,PurchasePrice-AmortizationSchedule4[[#This Row],[OR PREMIUM]],$F37-AmortizationSchedule4[[#This Row],[OR PREMIUM]])*(AmortizationSchedule4[[#This Row],[PAYMENTS]]>0) -> 0
B39: =IF(YearsToMaturity*2>=ROW()-ROW(AmortizationSchedule4[])+1,ROW()-ROW(AmortizationSchedule4[])+1,0) -> 0 | C39: =(AmortizationSchedule4[[#This Row],[PAYMENTS]]>0)*FaceValue*CouponRate*0.5 -> 0 | D39: =(AmortizationSchedule4[[#This Row],[PAYMENTS]]>0)*EffectiveRate*0.5*IF(AmortizationSchedule4[[#This Row],[PAYMENTS]]=1,PurchasePrice,$F38) -> 0 | E39: =AmortizationSchedule4[[#This Row],[CASH PAID]]-AmortizationSchedule4[[#This Row],[EXPENSE]] -> 0 | F39: =IF(AmortizationSchedule4[[#This Row],[PAYMENTS]]=1,PurchasePrice-AmortizationSchedule4[[#This Row],[OR PREMIUM]],$F38-AmortizationSchedule4[[#This Row],[OR PREMIUM]])*(AmortizationSchedule4[[#This Row],[PAYMENTS]]>0) -> 0
B40: =IF(YearsToMaturity*2>=ROW()-ROW(AmortizationSchedule4[])+1,ROW()-ROW(AmortizationSchedule4[])+1,0) -> 0 | C40: =(AmortizationSchedule4[[#This Row],[PAYMENTS]]>0)*FaceValue*CouponRate*0.5 -> 0 | D40: =(AmortizationSchedule4[[#This Row],[PAYMENTS]]>0)*EffectiveRate*0.5*IF(AmortizationSchedule4[[#This Row],[PAYMENTS]]=1,PurchasePrice,$F39) -> 0 | E40: =AmortizationSchedule4[[#This Row],[CASH PAID]]-AmortizationSchedule4[[#This Row],[EXPENSE]] -> 0 | F40: =IF(AmortizationSchedule4[[#This Row],[PAYMENTS]]=1,PurchasePrice-AmortizationSchedule4[[#This Row],[OR PREMIUM]],$F39-AmortizationSchedule4[[#This Row],[OR PREMIUM]])*(AmortizationSchedule4[[#This Row],[PAYMENTS]]>0) -> 0
B41: =IF(YearsToMaturity*2>=ROW()-ROW(AmortizationSchedule4[])+1,ROW()-ROW(AmortizationSchedule4[])+1,0) -> 0 | C41: =(AmortizationSchedule4[[#This Row],[PAYMENTS]]>0)*FaceValue*CouponRate*0.5 -> 0 | D41: =(AmortizationSchedule4[[#This Row],[PAYMENTS]]>0)*EffectiveRate*0.5*IF(AmortizationSchedule4[[#This Row],[PAYMENTS]]=1,PurchasePrice,$F40) -> 0 | E41: =AmortizationSchedule4[[#This Row],[CASH PAID]]-AmortizationSchedule4[[#This Row],[EXPENSE]] -> 0 | F41: =IF(AmortizationSchedule4[[#This Row],[PAYMENTS]]=1,PurchasePrice-AmortizationSchedule4[[#This Row],[OR PREMIUM]],$F40-AmortizationSchedule4[[#This Row],[OR PREMIUM]])*(AmortizationSchedule4[[#This Row],[PAYMENTS]]>0) -> 0
B42: =IF(YearsToMaturity*2>=ROW()-ROW(AmortizationSchedule4[])+1,ROW()-ROW(AmortizationSchedule4[])+1,0) -> 0 | C42: =(AmortizationSchedule4[[#This Row],[PAYMENTS]]>0)*FaceValue*CouponRate*0.5 -> 0 | D42: =(AmortizationSchedule4[[#This Row],[PAYMENTS]]>0)*EffectiveRate*0.5*IF(AmortizationSchedule4[[#This Row],[PAYMENTS]]=1,PurchasePrice,$F41) -> 0 | E42: =AmortizationSchedule4[[#This Row],[CASH PAID]]-AmortizationSchedule4[[#This Row],[EXPENSE]] -> 0 | F42: =IF(AmortizationSchedule4[[#This Row],[PAYMENTS]]=1,PurchasePrice-AmortizationSchedule4[[#This Row],[OR PREMIUM]],$F41-AmortizationSchedule4[[#This Row],[OR PREMIUM]])*(AmortizationSchedule4[[#This Row],[PAYMENTS]]>0) -> 0
B43: =IF(YearsToMaturity*2>=ROW()-ROW(AmortizationSchedule4[])+1,ROW()-ROW(AmortizationSchedule4[])+1,0) -> 0 | C43: =(AmortizationSchedule4[[#This Row],[PAYMENTS]]>0)*FaceValue*CouponRate*0.5 -> 0 | D43: =(AmortizationSchedule4[[#This Row],[PAYMENTS]]>0)*EffectiveRate*0.5*IF(AmortizationSchedule4[[#This Row],[PAYMENTS]]=1,PurchasePrice,$F42) -> 0 | E43: =AmortizationSchedule4[[#This Row],[CASH PAID]]-AmortizationSchedule4[[#This Row],[EXPENSE]] -> 0 | F43: =IF(AmortizationSchedule4[[#This Row],[PAYMENTS]]=1,PurchasePrice-AmortizationSchedule4[[#This Row],[OR PREMIUM]],$F42-AmortizationSchedule4[[#This Row],[OR PREMIUM]])*(AmortizationSchedule4[[#This Row],[PAYMENTS]]>0) -> 0
B44: =IF(YearsToMaturity*2>=ROW()-ROW(AmortizationSchedule4[])+1,ROW()-ROW(AmortizationSchedule4[])+1,0) -> 0 | C44: =(AmortizationSchedule4[[#This Row],[PAYMENTS]]>0)*FaceValue*CouponRate*0.5 -> 0 | D44: =(AmortizationSchedule4[[#This Row],[PAYMENTS]]>0)*EffectiveRate*0.5*IF(AmortizationSchedule4[[#This Row],[PAYMENTS]]=1,PurchasePrice,$F43) -> 0 | E44: =AmortizationSchedule4[[#This Row],[CASH PAID]]-AmortizationSchedule4[[#This Row],[EXPENSE]] -> 0 | F44: =IF(AmortizationSchedule4[[#This Row],[PAYMENTS]]=1,PurchasePrice-AmortizationSchedule4[[#This Row],[OR PREMIUM]],$F43-AmortizationSchedule4[[#This Row],[OR PREMIUM]])*(AmortizationSchedule4[[#This Row],[PAYMENTS]]>0) -> 0
B45: =IF(YearsToMaturity*2>=ROW()-ROW(AmortizationSchedule4[])+1,ROW()-ROW(AmortizationSchedule4[])+1,0) -> 0 | C45: =(AmortizationSchedule4[[#This Row],[PAYMENTS]]>0)*FaceValue*CouponRate*0.5 -> 0 | D45: =(AmortizationSchedule4[[#This Row],[PAYMENTS]]>0)*EffectiveRate*0.5*IF(AmortizationSchedule4[[#This Row],[PAYMENTS]]=1,PurchasePrice,$F44) -> 0 | E45: =AmortizationSchedule4[[#This Row],[CASH PAID]]-AmortizationSchedule4[[#This Row],[EXPENSE]] -> 0 | F45: =IF(AmortizationSchedule4[[#This Row],[PAYMENTS]]=1,PurchasePrice-AmortizationSchedule4[[#This Row],[OR PREMIUM]],$F44-AmortizationSchedule4[[#This Row],[OR PREMIUM]])*(AmortizationSchedule4[[#This Row],[PAYMENTS]]>0) -> 0
B46: =IF(YearsToMaturity*2>=ROW()-ROW(AmortizationSchedule4[])+1,ROW()-ROW(AmortizationSchedule4[])+1,0) -> 0 | C46: =(AmortizationSchedule4[[#This Row],[PAYMENTS]]>0)*FaceValue*CouponRate*0.5 -> 0 | D46: =(AmortizationSchedule4[[#This Row],[PAYMENTS]]>0)*EffectiveRate*0.5*IF(AmortizationSchedule4[[#This Row],[PAYMENTS]]=1,PurchasePrice,$F45) -> 0 | E46: =AmortizationSchedule4[[#This Row],[CASH PAID]]-AmortizationSchedule4[[#This Row],[EXPENSE]] -> 0 | F46: =IF(AmortizationSchedule4[[#This Row],[PAYMENTS]]=1,PurchasePrice-AmortizationSchedule4[[#This Row],[OR PREMIUM]],$F45-AmortizationSchedule4[[#This Row],[OR PREMIUM]])*(AmortizationSchedule4[[#This Row],[PAYMENTS]]>0) -> 0
B47: =IF(YearsToMaturity*2>=ROW()-ROW(AmortizationSchedule4[])+1,ROW()-ROW(AmortizationSchedule4[])+1,0) -> 0 | C47: =(AmortizationSchedule4[[#This Row],[PAYMENTS]]>0)*FaceValue*CouponRate*0.5 -> 0 | D47: =(AmortizationSchedule4[[#This Row],[PAYMENTS]]>0)*EffectiveRate*0.5*IF(AmortizationSchedule4[[#This Row],[PAYMENTS]]=1,PurchasePrice,$F46) -> 0 | E47: =AmortizationSchedule4[[#This Row],[CASH PAID]]-AmortizationSchedule4[[#This Row],[EXPENSE]] -> 0 | F47: =IF(AmortizationSchedule4[[#This Row],[PAYMENTS]]=1,PurchasePrice-AmortizationSchedule4[[#This Row],[OR PREMIUM]],$F46-AmortizationSchedule4[[#This Row],[OR PREMIUM]])*(AmortizationSchedule4[[#This Row],[PAYMENTS]]>0) -> 0
B48: =IF(YearsToMaturity*2>=ROW()-ROW(AmortizationSchedule4[])+1,ROW()-ROW(AmortizationSchedule4[])+1,0) -> 0 | C48: =(AmortizationSchedule4[[#This Row],[PAYMENTS]]>0)*FaceValue*CouponRate*0.5 -> 0 | D48: =(AmortizationSchedule4[[#This Row],[PAYMENTS]]>0)*EffectiveRate*0.5*IF(AmortizationSchedule4[[#This Row],[PAYMENTS]]=1,PurchasePrice,$F47) -> 0 | E48: =AmortizationSchedule4[[#This Row],[CASH PAID]]-AmortizationSchedule4[[#This Row],[EXPENSE]] -> 0 | F48: =IF(AmortizationSchedule4[[#This Row],[PAYMENTS]]=1,PurchasePrice-AmortizationSchedule4[[#This Row],[OR PREMIUM]],$F47-AmortizationSchedule4[[#This Row],[OR PREMIUM]])*(AmortizationSchedule4[[#This Row],[PAYMENTS]]>0) -> 0
